Cogmind - Beta 16.1 @@@ ROGUE MODE // 2026.03.13 @ 00:29:09 Player: r@sin Result: Destroyed by S-43 Plague with Heavy Machine Gun Performance ------------- Evolutions (7) 3500 Regions Visited (17) 3400 Robots Destroyed (53) 265 Value Destroyed (1297) 1297 Prototype IDs (11) 220 Alien Tech Used (0) 0 Bonus (500) 500 TOTAL SCORE: 9182 Bonus ------- Entered DSFs 500 Cogmind --------- Core Integrity 0/1300 Matter 265/300 Energy 150/150 System Corruption 0% Temperature Cool (0) Movement Core (250) Ox4 Location -3/Research Parts ------- > --- POWER (2) -------- Micro Antimatter Reactor > --- PROPULSION (7) --- (None) > --- UTILITY (10) ----- Experimental Heat Sink Enhanced Optical Array Advanced Signal Interpreter Advanced Terrain Scan Processor Improved System Guard > --- WEAPON (2) ------- Quantum Rifle > --- INVENTORY (5) ---- (None) Peak State ------------ > --- POWER ------------ Fission Core Micro Fission Core > --- PROPULSION ------- Field Propulsion Drive Field Propulsion Drive Field Propulsion Drive Field Propulsion Drive Field Propulsion Array > --- UTILITY ---------- Advanced Heat Sink Experimental Heat Sink Advanced Visual Processing Unit Advanced Sensor Array Advanced Signal Interpreter Long-range Terrain Scanner Advanced Transmission Jammer Advanced Hacking Suite Improved System Guard > --- WEAPON ----------- Quantum Rifle Power Sword > --- INVENTORY -------- Antimatter Reactor Micro-nuke Launcher [Rating: 115] Favorites ----------- Power Ion Engine Engine Ion Engine Power Core Fission Core Reactor Antimatter Reactor Propulsion Field Propulsion Drive Treads Armored Treads Hover Unit Improved Antigrav System Flight Unit Field Propulsion Drive Utility Advanced Visual Processing Unit Device Advanced Transmission Jammer Storage Medium Storage Unit Processor Advanced Visual Processing Unit Hackware Hacking Suite Protection Layered Medium Armor Plating Weapon Improved Light Cannon Energy Gun Medium Laser Energy Cannon Phase Cannon Ballistic Gun Heavy Assault Rifle Ballistic Cannon Improved Light Cannon Launcher Mini Grenade Launcher Impact Weapon Makeshift Hammer Slashing Weapon Power Sword Build | -11 -10 -10 -9 -8 -8 -7 -7 -7 -6 -6 -5 -4 -4 -4 -4 -4 -3 ------- Run | Yrd Mat Min Mat Mat Sto Fac Low Low Fac DSF Fac Fac Was Fac Upp Upp Res Slots Evolved 14 | . . . 2 2 . 2 . . 2 . 2 2 . . . . 2 Power 1 | . . . . . . . . . . . . 1 . . . . . Propulsion 5 | . . . 2 . . 1 . . . . 1 . . . . . 1 Utility 8 | . . . . 2 . 1 . . 2 . 1 1 . . . . 1 Weapon . | . . . . . . . . . . . . . . . . . . Parts Attached 82 | 6 4 2 5 4 4 4 4 . 3 . 11 4 . 17 5 1 8 Power 11 | 1 . . 1 . . . 1 . . . 3 1 . 2 1 . 1 Engine 2 | 1 . . . . . . . . . . 1 . . . . . . Core 6 | . . . 1 . . . 1 . . . 2 . . 2 . . . Reactor 3 | . . . . . . . . . . . . 1 . . 1 . 1 Propulsion 23 | 2 . 2 . 3 2 3 . . . . 4 1 . 3 1 . 2 Treads 4 | 2 . 2 . . . . . . . . . . . . . . . Leg . | . . . . . . . . . . . . . . . . . . Wheel . | . . . . . . . . . . . . . . . . . . Hover 2 | . . . . . . . . . . . . . . . . . 2 Flight 17 | . . . . 3 2 3 . . . . 4 1 . 3 1 . . Utility 34 | 2 1 . 2 1 2 . 1 . 2 . 3 1 . 11 2 1 5 Device 13 | 1 . . . . . . 1 . . . 1 . . 7 1 1 1 Storage 5 | 1 1 . 1 . . . . . . . . . . 1 1 . . Processor 7 | . . . . . 1 . . . 1 . 1 . . 2 . . 2 Hackware 6 | . . . . 1 1 . . . . . . 1 . 1 . . 2 Protection 3 | . . . 1 . . . . . 1 . 1 . . . . . . Artifact . | . . . . . . . . . . . . . . . . . . Weapon 14 | 1 3 . 2 . . 1 2 . 1 . 1 1 . 1 1 . . Energy Gun 2 | 1 . . . . . . . . . . . . . . 1 . . Energy Cannon 2 | . . . . . . 1 . . . . 1 . . . . . . Ballistic Gun 2 | . 1 . 1 . . . . . . . . . . . . . . Ballistic Cannon 3 | . 2 . . . . . . . . . . 1 . . . . . Launcher 3 | . . . 1 . . . 1 . . . . . . 1 . . . Special Weapon . | . . . . . . . . . . . . . . . . . . Impact Weapon 1 | . . . . . . . 1 . . . . . . . . . . Slashing Weapon 1 | . . . . . . . . . 1 . . . . . . . . Piercing Weapon . | . . . . . . . . . . . . . . . . . . Special Melee Weapon . | . . . . . . . . . . . . . . . . . . Unidentified Prototypes 4 | . . . . . . 3 . . . . . . . 1 . . . Parts Lost 41 | . . . 5 1 3 . 1 . . . 1 1 3 6 4 . 16 Power 6 | . . . 2 . 1 . . . . . . . . 1 1 . 1 Propulsion 15 | . . . . 1 2 . 1 . . . 1 . 1 1 3 . 5 Utility 16 | . . . 1 . . . . . . . . 1 2 4 . . 8 Weapon 4 | . . . 2 . . . . . . . . . . . . . 2 Highest Loss Streak 13 | . . . 2 1 3 . 1 . . . 1 1 3 3 2 . 13 To Critical Strikes 1 | . . . . . . . . . . . 1 . . . . . . Average Backups 6 | 1 4 9 9 4 4 5 6 7 7 7 7 7 7 3 4 4 4 Power . | . 1 1 . . . . . 1 1 1 1 1 2 . 1 1 1 Propulsion 1 | . . 4 4 2 . . 1 1 . . 1 2 2 . . . . Utility 2 | . 1 3 3 2 3 3 4 4 4 4 3 2 2 . 1 1 1 Weapon 1 | 1 1 1 . . . 1 1 1 2 2 1 1 1 . 1 2 1 Tool/Special . | . . . . . . . . . . . . . . . . . . Unused Backups 23 | . . 6 5 . . 2 . . 2 . 5 1 . 2 . . . Power 2 | . . 2 . . . . . . . . . . . . . . . Propulsion 2 | . . . . . . . . . 1 . 1 . . . . . . Utility 10 | . . 1 3 . . 2 . . . . 2 1 . 1 . . . Weapon 8 | . . 3 2 . . . . . 1 . 2 . . . . . . Tool/Special 1 | . . . . . . . . . . . . . . 1 . . . Average Slot Usage (%) 82 | . 96 100 72 48 72 66 89 92 83 86 86 87 84 84 81 70 61 Engine 4 | . 14 14 4 . 5 6 6 . . . . . . . . . . Core 2 | . . . 3 . . . . 7 6 6 4 2 . 8 2 . 1 Reactor 1 | . . . . . . . . . . . . 3 5 . 3 5 1 Treads 9 | . 28 28 22 5 . . . . . . . . . . . . . Flight 14 | . . . . 18 25 27 37 30 26 26 29 31 31 27 21 15 8 Device 13 | . 14 14 7 . . . 7 7 6 6 8 10 10 16 22 23 16 Storage 7 | . 14 14 11 9 9 7 7 7 6 6 5 5 5 2 3 . . Processor 7 | . . . . . 8 7 7 7 11 13 12 10 10 13 15 15 14 Hackware 5 | . . . . 7 15 15 15 15 13 13 11 11 10 8 5 5 10 Protection 1 | . . . 3 . . . . . 4 6 4 5 5 . . . . Energy Gun 1 | . 13 . . . . . . . . . . . . . 1 . . Ballistic Gun 1 | . 9 . 6 . . . . . . . . . . . . . . Ballistic Cannon 6 | . 2 28 12 . . . . . . . . . . . . . . Launcher 1 | . . . 1 9 9 1 3 7 . . . . . 1 . . . Slashing Weapon 2 | . . . . . . . . . 5 6 4 5 5 5 5 5 2 Peak Build Rating 115 | 8 12 17 19 13 23 30 39 38 44 44 74 83 78 109 115 85 98 Average Rating 49 | 4 8 15 15 11 18 23 34 38 43 44 63 79 74 91 94 83 77 On Entrance 41 | . 8 12 17 10 11 18 30 34 38 44 44 73 78 51 109 82 85 Avg Prop Armor Cover (%) 6 | . . . . 7 5 2 6 . . . 2 1 1 8 2 . 14 Naked Turns . | . . . . . . . . . . . . . . . . . . Heaviest Build 40 | 13 24 24 24 6 7 10 15 18 19 19 25 40 34 34 34 25 30 Greatest Support 49 | 40 40 42 42 42 15 24 19 19 19 19 40 41 35 49 41 29 29 Greatest Overweight (x) 9 | . . . . . . . . . . . . . . . . . 9 Average Overweight (x) . | . . . . . . . . . . . . . . . . . . Largest Inventory Capacity 10 | 8 10 10 10 8 8 8 8 8 8 8 8 8 8 5 10 5 5 Average Capacity 8 | 6 8 10 9 8 8 8 8 8 8 8 8 8 7 5 8 5 5 Most Carried 10 | 3 10 10 10 8 6 7 8 7 8 8 8 8 7 5 5 5 5 Average Carried 6 | 2 4 9 9 4 4 5 6 7 7 7 7 7 6 3 4 4 4 Final Capacity 10 | 8 10 10 8 8 8 8 8 8 8 8 8 8 5 5 5 5 5 Final Carried 10 | 3 10 10 7 5 6 7 8 7 7 8 7 7 5 2 5 4 . Class Distribution -------------------- 42% | Mutant 19% | Scientist-Ninja 10% | Hacker-Ninja 9% | Hacker-Sprinter 7% | Hacker-Mutant 5% | Hacker-Scout 3% | Scientist-Assassin Dominant Class ---------------- Mutant | -10/Materials Mutant | -10/Mines Mutant | -9/Materials Sprinter | -8/Materials Hacker-Sprinter | -8/Storage Hacker-Sprinter | -7/Factory Hacker-Sprinter | -7/Lower Caves Hacker-Sprinter | -7/Lower Caves Hacker-Scout | -6/Factory Hacker-Scout | -6/DSF Hacker-Ninja | -5/Factory Hacker-Ninja | -4/Factory Hacker-Ninja | -4/Waste Mutant | -4/Factory Scientist-Ninja | -4/Upper Caves Scientist-Ninja | -4/Upper Caves Hacker-Mutant | -3/Research Resources | -11 -10 -10 -9 -8 -8 -7 -7 -7 -6 -6 -5 -4 -4 -4 -4 -4 -3 ----------- Run | Yrd Mat Min Mat Mat Sto Fac Low Low Fac DSF Fac Fac Was Fac Upp Upp Res Matter Collected 1740 | 229 38 201 179 10 207 . 17 157 . . 149 . . 166 245 67 75 Remotely . | . . . . . . . . . . . . . . . . . . Salvage Created 1429 | 27 38 166 264 30 . . 35 148 . . 68 . . 179 185 192 97 Parts 105 | 4 1 19 38 5 . . 4 . . . 5 . . 11 7 2 9 Haulers Intercepted . | . . . . . . . . . . . . . . . . . . Recyclers Shooed . | . . . . . . . . . . . . . . . . . . Parts Field Recycled . | . . . . . . . . . . . . . . . . . . Retrieved Matter . | . . . . . . . . . . . . . . . . . . Parts Self-Destructed 10 | . . . . . . . 3 . . . . . . . 7 . . Prevented 3 | . . . . . . . . . . . . . . . 3 . . Parts Restored . | . . . . . . . . . . . . . . . . . . Kills | -11 -10 -10 -9 -8 -8 -7 -7 -7 -6 -6 -5 -4 -4 -4 -4 -4 -3 ------- Run | Yrd Mat Min Mat Mat Sto Fac Low Low Fac DSF Fac Fac Was Fac Upp Upp Res Combat Hostiles Destroyed 46 | . 1 12 14 4 . . 3 . . . . . . 3 8 . 1 Melee 4 | . . . . . . . . . . . . . . 3 . . 1 Guns 6 | . 1 . 5 . . . . . . . . . . . . . . Cannons 20 | . . 12 8 . . . . . . . . . . . . . . AOE 16 | . . . 1 4 . . 3 . . . . . . . 8 . . Classes Destroyed 11 | 1 1 1 4 . . . . 1 . . 1 . . 1 1 . . Worker 1 | . . . 1 . . . . . . . . . . . . . . Builder 1 | . . . 1 . . . . . . . . . . . . . . Tunneler 1 | 1 . . . . . . . . . . . . . . . . . Operator 2 | . . . . . . . . . . . 1 . . . . . 1 Watcher 2 | . . . 1 . . . . . . . 1 . . . . . . Swarmer 34 | . . 9 11 4 . . 3 . . . . . . . 7 . . Grunt 5 | . 1 3 . . . . . . . . . . . 1 . . . Sentry 4 | . . . 3 . . . . . . . . . . . 1 . . Programmer 3 | . . . . . . . . . . . . . . 2 . . 1 Decomposer 2 | . . . . . . . . 2 . . . . . . . . . Packrat 4 | . . . . . . . . . . . . . . . 2 2 . Samaritan 3 | . . . . . . . . 2 . . . . . . . 1 . Best Kill Streak 8 | 1 1 3 8 4 . . 3 . . . 1 . . 2 8 . 1 Combat Bots Only 8 | . 1 3 7 4 . . 3 . . . . . . 2 8 . 1 Max Kills in Single Turn 3 | 1 1 1 2 3 . . 1 1 . . 1 . . 1 3 1 1 Gunslinging . | . . . . . . . . . . . . . . . . . . Exploded 3 | . . . 1 3 . . 1 . . . . . . . 3 . . Melee 1 | . . . . . . . . . . . . . . 1 . . 1 Uniques/NPCs Destroyed . | . . . . . . . . . . . . . . . . . . Combat | -11 -10 -10 -9 -8 -8 -7 -7 -7 -6 -6 -5 -4 -4 -4 -4 -4 -3 -------- Run | Yrd Mat Min Mat Mat Sto Fac Low Low Fac DSF Fac Fac Was Fac Upp Upp Res Hostile Shots Fired 525 | . 8 24 117 24 32 9 10 . . 1 25 26 2 58 22 . 167 Missed 238 | . 4 11 38 14 15 8 5 . . 1 14 19 . 33 10 . 66 Hits 287 | . 4 13 79 10 17 1 5 . . . 11 7 2 25 12 . 101 Melee 2 | . . . . . . . . . . . . . 2 . . . . Projectile 285 | . 4 13 79 10 17 1 5 . . . 11 7 . 25 12 . 101 AOE 1 | . . . . . . . . . . . . . . 1 . . . Critical Strikes 7 | . . . 1 . 2 . . . . . 1 . . 1 . . 2 Actively Blocked 1 | . . . . . . . . . . . . . . . . . 1 Damage Taken 5335 | . 97 132 945 117 292 5 75 . . . 260 113 84 638 345 . 2232 Core 1995 | . 30 29 87 26 127 . . . . . 86 17 54 153 71 . 1315 Absorbed by Shields 20 | . . . . . 20 . . . . . . . . . . . . Regen/Repaired (Parts) 40 | . . . . . . 40 . . . . . . . . . . . Core Remaining (%) 86 | 100 . 76 78 . 72 . . 100 . 100 91 . . . . 74 . Volleys Fired 91 | 8 4 18 33 2 3 . 6 . . . 1 . . . 16 . . Largest 2 | 1 2 2 2 1 1 . 1 . . . 1 . . . 1 . . Hottest 94 | 50 70 66 66 30 30 . 33 . . . 85 . . . 94 . . Shots Fired 145 | 8 8 36 65 2 3 . 6 . . . 1 . . . 16 . . Gun 39 | 8 8 . 16 . . . . . . . . . . . 7 . . Cannon 84 | . . 36 47 . . . . . . . 1 . . . . . . Launcher 22 | . . . 2 2 3 . 6 . . . . . . . 9 . . Special . | . . . . . . . . . . . . . . . . . . Kinetic 103 | . 4 36 63 . . . . . . . . . . . . . . Thermal 20 | 8 4 . . . . . . . . . 1 . . . 7 . . Explosive 22 | . . . 2 2 3 . 6 . . . . . . . 9 . . Electromagnetic . | . . . . . . . . . . . . . . . . . . Robot Hit Streak 7 | 1 3 7 5 1 . . . . . . . . . . 2 . . Robot Miss Streak 6 | 4 1 3 6 1 . . 1 . . . . . . . 3 . . Penetration Max . | . . . . . . . . . . . . . . . . . . Secondary Targets . | . . . . . . . . . . . . . . . . . . Shots Hit Robots 81 | 2 5 19 27 1 . . . 4 . . 2 . . 6 5 4 6 Core Hits 66 | 1 2 13 19 4 . . 5 . . . 2 . . 3 13 1 3 Critical Kills . | . . . . . . . . . . . . . . . . . . Critical Parts Destroyed . | . . . . . . . . . . . . . . . . . . Critical Strikes 4 | . . 1 2 . . . . . . . . . . . . . 1 Blast 3 | . . 1 2 . . . . . . . . . . . . . . Sever 1 | . . . . . . . . . . . . . . . . . 1 Melee Attacks 79 | . . . . . . . 1 4 6 . 14 3 . 15 19 4 13 Impact 5 | . . . . . . . 1 4 . . . . . . . . . Slashing 74 | . . . . . . . . . 6 . 14 3 . 15 19 4 13 Piercing . | . . . . . . . . . . . . . . . . . . Sneak Attacks 11 | . . . . . . . . 4 . . 1 . . . 2 4 . Combat Hostiles . | . . . . . . . . . . . . . . . . . . Follow-up Attacks . | . . . . . . . . . . . . . . . . . . Damage Inflicted 4171 | 25 54 433 628 260 . . 219 411 . . 180 . . 295 1045 337 284 Guns 194 | 25 54 . 115 . . . . . . . . . . . . . . Cannons 907 | . . 433 474 . . . . . . . . . . . . . . Explosions 1350 | . . . 39 260 . . 219 . . . . . . . 832 . . Melee 1720 | . . . . . . . . 411 . . 180 . . 295 213 337 284 Ramming . | . . . . . . . . . . . . . . . . . . Kinetic 1038 | . 16 433 589 . . . . . . . . . . . . . . Thermal 63 | 25 38 . . . . . . . . . . . . . . . . Explosive 1350 | . . . 39 260 . . 219 . . . . . . . 832 . . Electromagnetic . | . . . . . . . . . . . . . . . . . . Impact 411 | . . . . . . . . 411 . . . . . . . . . Slashing 1309 | . . . . . . . . . . . 180 . . 295 213 337 284 Piercing . | . . . . . . . . . . . . . . . . . . Highest Corruption 8 | . . . . . 2 . . . . . . . 8 8 . . . Average Corruption 7 | . . . . . 2 . . . . . . . 8 8 . . . Corruption Purged . | . . . . . . . . . . . . . . . . . . Corruption Blocked . | . . . . . . . . . . . . . . . . . . Effects 5 | . . . . . . . . . . . . . 1 4 . . . Message Errors 2 | . . . . . . . . . . . . . . 2 . . . Heat Flow Errors 1 | . . . . . . . . . . . . . . 1 . . . Energy Discharges 2 | . . . . . . . . . . . . . 1 1 . . . Overload Shots . | . . . . . . . . . . . . . . . . . . Overflow Damage 894 | . . 3 . 2 . . . 350 . . . . . 49 302 173 15 Projectiles 3 | . . 3 . . . . . . . . . . . . . . . Explosions 171 | . . . . 2 . . . . . . . . . . 169 . . Melee 720 | . . . . . . . . 350 . . . . . 49 133 173 15 Knockbacks 7 | . . 2 5 . . . . . . . . . . . . . . Impact . | . . . . . . . . . . . . . . . . . . Kinetic 7 | . . 2 5 . . . . . . . . . . . . . . Secondary . | . . . . . . . . . . . . . . . . . . Self-Inflicted Damage 173 | . . . . . 64 . . . . . . . . . 109 . . Shots 4 | . . . . . 2 . . . . . . . . . 2 . . Rammed . | . . . . . . . . . . . . . . . . . . Targets Rammed . | . . . . . . . . . . . . . . . . . . Kicked . | . . . . . . . . . . . . . . . . . . Crushed . | . . . . . . . . . . . . . . . . . . Highest Temperature 202 | 60 86 42 6 . 14 . . . . . 30 14 . 202 . . . Average Temperature 22 | 25 44 13 3 . 10 . . . . . 7 6 . 110 . . . Received Heat Transfer 780 | . 12 18 243 45 105 . . . . . 45 12 . 84 27 . 189 Siege Activations . | . . . . . . . . . . . . . . . . . . Martial Activations . | . . . . . . . . . . . . . . . . . . Shielding Activations . | . . . . . . . . . . . . . . . . . . Robots Disrupted . | . . . . . . . . . . . . . . . . . . Combat Hostiles . | . . . . . . . . . . . . . . . . . . Robots Corrupted . | . . . . . . . . . . . . . . . . . . Combat Hostiles . | . . . . . . . . . . . . . . . . . . Parts Fried . | . . . . . . . . . . . . . . . . . . Impact Corruptions 15 | . . . . . . . . 15 . . . . . . . . . Robots Melted . | . . . . . . . . . . . . . . . . . . Combat Hostiles . | . . . . . . . . . . . . . . . . . . Parts Melted . | . . . . . . . . . . . . . . . . . . Heat Transferred 185 | 74 111 . . . . . . . . . . . . . . . . Parts Sabotaged . | . . . . . . . . . . . . . . . . . . Parts Stolen . | . . . . . . . . . . . . . . . . . . Parts Stripped . | . . . . . . . . . . . . . . . . . . Power Chain Reactions . | . . . . . . . . . . . . . . . . . . Alert | -11 -10 -10 -9 -8 -8 -7 -7 -7 -6 -6 -5 -4 -4 -4 -4 -4 -3 ------- Run | Yrd Mat Min Mat Mat Sto Fac Low Low Fac DSF Fac Fac Was Fac Upp Upp Res Maximum Alert Level 1 | . . . 1 . . . . . . . . . . . . . . Low Security (%) 93 | 100 100 100 66 100 100 100 . . 100 100 100 100 100 100 . . 100 Level 1 6 | . . . 33 . . . . . . . . . . . . . . Level 2 . | . . . . . . . . . . . . . . . . . . Level 3 . | . . . . . . . . . . . . . . . . . . Level 4 . | . . . . . . . . . . . . . . . . . . Level 5 . | . . . . . . . . . . . . . . . . . . High Security . | . . . . . . . . . . . . . . . . . . Max Security . | . . . . . . . . . . . . . . . . . . Peak Influence 264 | 5 20 74 264 167 108 24 . . 21 . 68 79 21 136 . . 129 Initial 76 | . 3 . 3 76 66 . . . 13 . . 19 21 . . . . Average 53 | . 2 29 151 89 70 4 . . 6 . 26 32 15 53 . . 42 Influence Increases 2402 | 5 20 286 480 177 94 29 85 . 21 . 235 81 . 374 230 . 285 Destroy 0b10 Robot/C 920 | . 20 240 280 80 . . 60 . . . . . . 60 160 . 20 Destroy 0b10 Robot/NC 35 | 5 . . 15 . . . . . . . 10 . . . . . 5 Destroy Leader 154 | . . 40 62 10 . . 10 . . . 2 . . 10 10 . 10 Allied During Kill 5 | . . 5 . . . . . . . . . . . . . . . Successful Hack 141 | . . . . . 20 29 . . . . 36 . . 56 . . . Disable Machine 75 | . . . 15 15 15 . . . . . 15 . . 15 . . . Destroy Structure 112 | . . 1 18 12 29 . . . 6 . 22 6 . 8 . . 10 Partial Spotted 90 | . . . . 15 . . . . 15 . 30 . . 30 . . . Lose Combat Pursuer 870 | . . . 90 45 30 . 15 . . . 120 75 . 195 60 . 240 Influence Decreases 2368 | . 25 275 310 201 251 29 20 43 42 1 194 61 61 248 348 8 251 Entered New Map 340 | . 2 . 8 105 91 . . 13 9 1 . 22 40 . 47 2 . Time Decay 1429 | . 23 255 252 30 40 29 10 30 33 . 153 29 10 174 261 6 94 Lost Part 388 | . . . 50 10 30 . 10 . . . 10 10 11 60 40 . 157 Lost Ally 20 | . . 20 . . . . . . . . . . . . . . . Purge Threat 191 | . . . . 56 90 . . . . . 31 . . 14 . . . Squads Dispatched 19 | . 1 1 2 1 1 . . . 1 . 2 . . 4 . . 6 Investigation 9 | . . 1 . . 1 . . . 1 . . . . 1 . . 5 Extermination 5 | . . . . . . . . . . . 2 . . 2 . . 1 Reinforcement 5 | . 1 . 2 1 . . . . . . . . . 1 . . . Assault . | . . . . . . . . . . . . . . . . . . Garrison . | . . . . . . . . . . . . . . . . . . Intercept . | . . . . . . . . . . . . . . . . . . Searches Triggered . | . . . . . . . . . . . . . . . . . . Construction Impeded . | . . . . . . . . . . . . . . . . . . Haulers Reinforced . | . . . . . . . . . . . . . . . . . . Active Scanning Responses . | . . . . . . . . . . . . . . . . . . Cargo Convoy Interrupts . | . . . . . . . . . . . . . . . . . . Stealth | -11 -10 -10 -9 -8 -8 -7 -7 -7 -6 -6 -5 -4 -4 -4 -4 -4 -3 --------- Run | Yrd Mat Min Mat Mat Sto Fac Low Low Fac DSF Fac Fac Was Fac Upp Upp Res Distress Signals 6 | . . . . . 1 . . . . . 2 1 . 1 . . 1 Communications Jammed 22 | . . . . . . . . . . . 5 . . 16 . . 1 Distress Signals 20 | . . . . . . . . . . . 3 . . 16 . . 1 Times Spotted 202 | . 8 12 24 14 10 2 4 . . 1 19 18 4 35 11 . 40 Peak Tracking Total 23 | . 2 3 6 11 11 2 4 . . 1 10 13 4 15 3 . 23 Tactical Retreats 29 | . . 1 4 1 1 . 1 . . . 4 1 . 6 3 . 7 Traps | -11 -10 -10 -9 -8 -8 -7 -7 -7 -6 -6 -5 -4 -4 -4 -4 -4 -3 ------- Run | Yrd Mat Min Mat Mat Sto Fac Low Low Fac DSF Fac Fac Was Fac Upp Upp Res Traps Triggered 12 | . 2 . . . 3 . . . 1 . . 1 . 4 . . 1 Indirectly . | . . . . . . . . . . . . . . . . . . Trap Hack Attempts . | . . . . . . . . . . . . . . . . . . Triggered . | . . . . . . . . . . . . . . . . . . Disarmed . | . . . . . . . . . . . . . . . . . . Reprogrammed . | . . . . . . . . . . . . . . . . . . Reused . | . . . . . . . . . . . . . . . . . . Traps Extracted . | . . . . . . . . . . . . . . . . . . Installed . | . . . . . . . . . . . . . . . . . . Triggered . | . . . . . . . . . . . . . . . . . . Machines | -11 -10 -10 -9 -8 -8 -7 -7 -7 -6 -6 -5 -4 -4 -4 -4 -4 -3 ---------- Run | Yrd Mat Min Mat Mat Sto Fac Low Low Fac DSF Fac Fac Was Fac Upp Upp Res Machines Disabled 6 | . . . 1 1 1 . . . . . 1 . . 1 1 . . Max in Single Turn 1 | . . . 1 1 1 . . . . . 1 . . 1 1 . . Garrison Access 3 | . . . . 1 1 . . . . . . . . . . . 1 Machines Repaired . | . . . . . . . . . . . . . . . . . . Machines Dismantled . | . . . . . . . . . . . . . . . . . . Machines Sabotaged . | . . . . . . . . . . . . . . . . . . Overloaded Fab Kills . | . . . . . . . . . . . . . . . . . . Hacking | -11 -10 -10 -9 -8 -8 -7 -7 -7 -6 -6 -5 -4 -4 -4 -4 -4 -3 --------- Run | Yrd Mat Min Mat Mat Sto Fac Low Low Fac DSF Fac Fac Was Fac Upp Upp Res Machines Accessed 49 | . . 1 3 2 8 9 1 . 1 . 6 1 . 9 1 . 7 Terminals 31 | . . . 3 1 5 4 . . 1 . 5 1 . 6 . . 5 Fabricators 5 | . . . . . . 2 . . . . 1 . . 1 . . 1 Repair Stations 3 | . . . . . 1 2 . . . . . . . . . . . Recycling Units 1 | . . . . . 1 . . . . . . . . . . . . Scanalyzers 2 | . . . . . . . . . . . . . . 2 . . . Garrison Access 4 | . . . . 1 1 1 . . . . . . . . . . 1 Total Hacks 129 | . . 1 10 2 24 20 1 . 2 . 16 2 . 31 1 . 19 Successful 58 | . . 1 3 2 9 8 1 . 1 . 11 1 . 18 1 . 2 Failed 70 | . . . 7 . 15 12 . . 1 . 5 1 . 12 . . 17 Catastrophic 19 | . . . 3 . 4 1 . . . . 1 . . 2 . . 8 Database Lockouts 1 | . . . . . . . . . . . . . . 1 . . . Manual 62 | . . . 9 1 7 7 . . . . 10 1 . 14 . . 13 Terminals 96 | . . . 10 1 19 11 . . 2 . 15 2 . 20 . . 16 Fabricators 7 | . . . . . . 3 . . . . 1 . . 1 . . 2 Repair Stations 5 | . . . . . 1 4 . . . . . . . . . . . Recycling Units 3 | . . . . . 3 . . . . . . . . . . . . Scanalyzers 10 | . . . . . . . . . . . . . . 10 . . . Garrison Access 5 | . . . . 1 1 2 . . . . . . . . . . 1 Terminal Hacks 24 | . . 1 1 1 6 1 1 . 1 . 6 1 . 4 1 . . Record 3 | . . . . . . . . . . . 2 . . 1 . . . Robot Analysis 3 | . . . . . 2 . . . . . . 1 . . . . . Prototype ID Bank 3 | . . . 1 . . 1 . . . . 1 . . . . . . Open Door 5 | . . 1 . . 2 . 1 . . . . . . . 1 . . Open DSF 3 | . . . . . . . . . 1 . 1 . . 1 . . . Level Access Points 2 | . . . . . 1 . . . . . 1 . . . . . . Emergency Access Points 1 | . . . . . . . . . . . . . . 1 . . . Unreport Threat 4 | . . . . 1 1 . . . . . 1 . . 1 . . . Fabricator Hacks 4 | . . . . . . 1 . . . . 1 . . 1 . . 1 Network Status 1 | . . . . . . 1 . . . . . . . . . . . Load Schematic 1 | . . . . . . . . . . . . . . . . . 1 Build 2 | . . . . . . . . . . . 1 . . 1 . . . Repair Station Hacks 4 | . . . . . 1 3 . . . . . . . . . . . Scan Component 1 | . . . . . . 1 . . . . . . . . . . . Repair 1 | . . . . . . 1 . . . . . . . . . . . Refit 2 | . . . . . 1 1 . . . . . . . . . . . Recycling Unit Hacks 1 | . . . . . 1 . . . . . . . . . . . . Retrieve Components 1 | . . . . . 1 . . . . . . . . . . . . Scanalyzer 8 | . . . . . . . . . . . . . . 8 . . . Insert Component 2 | . . . . . . . . . . . . . . 2 . . . Analyze 1 | . . . . . . . . . . . . . . 1 . . . Retrieve Study 5 | . . . . . . . . . . . . . . 5 . . . Garrison Access Hacks 3 | . . . . 1 1 . . . . . . . . . . . 1 Seal Access 3 | . . . . 1 1 . . . . . . . . . . . 1 Unauthorized Hacks 14 | . . . 2 . . 3 . . . . 4 . . 5 . . . Terminals 14 | . . . 2 . . 3 . . . . 4 . . 5 . . . Assimilate 1 | . . . . . . . . . . . . . . 1 . . . Botnet 13 | . . . 2 . . 3 . . . . 4 . . 4 . . . Fabricators . | . . . . . . . . . . . . . . . . . . Repair Stations . | . . . . . . . . . . . . . . . . . . Recycling Units . | . . . . . . . . . . . . . . . . . . Scanalyzers . | . . . . . . . . . . . . . . . . . . Garrison Access . | . . . . . . . . . . . . . . . . . . Data Cores Recovered 2 | . . . . . . . . . . . 1 . . . . . 1 Used 1 | . . . . . . . . . . . . . . . . . 1 Hacking Detections 32 | . . . 3 . 4 6 . . . . 4 1 . 8 . . 6 Full Trace Events 6 | . . . . . . . . . . . . . . 1 . . 5 Feedback Events 1 | . . . . . . . . . . . . . . . . . 1 Corruption 1 | . . . . . . . . . . . . . . . . . 1 Feedback Blocked . | . . . . . . . . . . . . . . . . . . Robot Schematics Acquired . | . . . . . . . . . . . . . . . . . . Robots Built . | . . . . . . . . . . . . . . . . . . Authchips . | . . . . . . . . . . . . . . . . . . Time . | . . . . . . . . . . . . . . . . . . Total Robot Build Rating . | . . . . . . . . . . . . . . . . . . Part Schematics Acquired 1 | . . . . . . . . . . . . . . 1 . . . Parts Built 4 | . . . . . . . . . . . 2 . . 2 . . . Authchips . | . . . . . . . . . . . . . . . . . . Time 159 | . . . . . . . . . . . 117 . . 42 . . . Total Part Build Rating 30 | . . . . . . . . . . . 14 . . 16 . . . Part Studies Acquired 5 | . . . . . . . . . . . . . . 5 . . . Parts Repaired 1 | . . . . . . 1 . . . . . . . . . . . Time 32 | . . . . . . 32 . . . . . . . . . . . Parts Recycled . | . . . . . . . . . . . . . . . . . . Recycled Matter . | . . . . . . . . . . . . . . . . . . Retrieved Matter . | . . . . . . . . . . . . . . . . . . Retrieved Components 2 | . . . . . 2 . . . . . . . . . . . . Parts Scanalyzed 1 | . . . . . . . . . . . . . . 1 . . . Part Schematics Acquired 1 | . . . . . . . . . . . . . . 1 . . . Parts Damaged . | . . . . . . . . . . . . . . . . . . Bothacking | -11 -10 -10 -9 -8 -8 -7 -7 -7 -6 -6 -5 -4 -4 -4 -4 -4 -3 ------------ Run | Yrd Mat Min Mat Mat Sto Fac Low Low Fac DSF Fac Fac Was Fac Upp Upp Res Used RIF Installer . | . . . . . . . . . . . . . . . . . . Robots Hacked . | . . . . . . . . . . . . . . . . . . Non-combat . | . . . . . . . . . . . . . . . . . . Combat . | . . . . . . . . . . . . . . . . . . Robot Hacks Applied . | . . . . . . . . . . . . . . . . . . Relay Couplers Released . | . . . . . . . . . . . . . . . . . . Fabnet Peak Effective % . | . . . . . . . . . . . . . . . . . . Robots Rewired . | . . . . . . . . . . . . . . . . . . Allies Hacked . | . . . . . . . . . . . . . . . . . . Hacks Repelled . | . . . . . . . . . . . . . . . . . . Allies | -11 -10 -10 -9 -8 -8 -7 -7 -7 -6 -6 -5 -4 -4 -4 -4 -4 -3 -------- Run | Yrd Mat Min Mat Mat Sto Fac Low Low Fac DSF Fac Fac Was Fac Upp Upp Res Total Allies 1 | . . 1 . . . . . . . . . . . . . . . Largest Group 1 | . . 1 . . . . . . . . . . . . . . . Highest-Rated Group 31 | . . 31 . . . . . . . . . . . . . . . Highest-Rated Ally 31 | . . 31 . . . . . . . . . . . . . . . Total Orders . | . . . . . . . . . . . . . . . . . . Ally Attacks 9 | . . 9 . . . . . . . . . . . . . . . Total Damage 82 | . . 82 . . . . . . . . . . . . . . . Kills . | . . . . . . . . . . . . . . . . . . Allies Corrupted . | . . . . . . . . . . . . . . . . . . Allies Melted . | . . . . . . . . . . . . . . . . . . Intel | -11 -10 -10 -9 -8 -8 -7 -7 -7 -6 -6 -5 -4 -4 -4 -4 -4 -3 ------- Run | Yrd Mat Min Mat Mat Sto Fac Low Low Fac DSF Fac Fac Was Fac Upp Upp Res Active Infowar (turns) 4098 | 11 272 740 422 . 98 147 103 72 131 9 321 70 31 448 853 74 296 Optics 2519 | . . . . . 98 147 103 72 131 9 321 70 31 448 853 74 162 Sensors 2010 | . . . . . . . 103 72 131 9 321 70 28 189 853 74 160 Terrain 2561 | 11 272 740 422 . . . . . . . . . . 73 853 74 116 Jamming 1871 | . . . . . . . . . . . 179 70 28 446 853 74 221 Robot Analysis Total 3 | . . . . . 2 . . . . . . 1 . . . . . Derelict Logs Recovered 4 | . . 1 . . . . . 1 . . . . . . 1 1 . Drone Launches . | . . . . . . . . . . . . . . . . . . Drone Recoveries . | . . . . . . . . . . . . . . . . . . Exploration | -11 -10 -10 -9 -8 -8 -7 -7 -7 -6 -6 -5 -4 -4 -4 -4 -4 -3 ------------- Run | Yrd Mat Min Mat Mat Sto Fac Low Low Fac DSF Fac Fac Was Fac Upp Upp Res Turns Passed 4449 | 98 272 740 618 62 104 147 103 72 131 9 321 70 31 448 853 74 296 Spaces Moved 6168 | 46 155 414 308 98 284 399 270 231 155 30 708 147 87 988 1092 181 575 Core 121 | 2 . . . . . . . . . . . . . . . . 119 Treads 927 | 44 155 414 308 6 . . . . . . . . . . . . . Legs . | . . . . . . . . . . . . . . . . . . Wheels . | . . . . . . . . . . . . . . . . . . Hover 8 | . . . . . . . . . . . . . . . . . 8 Flight 5112 | . . . . 92 284 399 270 231 155 30 708 147 87 988 1092 181 448 Fastest Speed 25 | 50 160 157 157 32 26 25 27 27 27 27 25 28 33 28 32 34 34 Average Speed 51 | 155 160 157 157 39 30 28 28 27 27 27 30 32 33 35 32 34 39 Slowest Speed 500 | 160 160 165 157 157 32 30 30 27 27 27 34 33 36 42 37 34 500 Overloaded Moves . | . . . . . . . . . . . . . . . . . . Propulsion Burnouts . | . . . . . . . . . . . . . . . . . . Robots Hopped 65 | . . . . 2 7 9 . . . . 12 5 2 17 1 . 10 Potential Cave-ins . | . . . . . . . . . . . . . . . . . . Cave-ins Triggered . | . . . . . . . . . . . . . . . . . . Exploration Rate (%) 35 | 4 33 87 41 17 47 13 53 27 3 41 18 4 89 34 88 25 18 Regions Visited 17 Branch Regions 6 Pre-discovered Areas 1 | . . 1 . . . . . . . . . . . . . . . Known Exits Taken 6 | . . . . . 1 . . . 1 . 1 . . 1 1 1 . Unknown Exits Taken 8 | 1 1 1 1 1 . 1 1 1 . . . . . . . . . Scrap Searched 4 | . . 1 . . . . 1 1 . . . . . . 1 . . Spaces Dug 68 | . . . 1 . . . 1 . 6 . 10 3 . 4 38 . 5 Terrain Destroyed 339 | . . 1 17 11 30 . 64 . 6 . 11 3 . 4 187 . 5 Melee 43 | . . . . . . . 1 . 6 . 10 3 . 4 14 . 5 Projectile 9 | . . 1 2 . . . . . . . 1 . . . 5 . . AOE 287 | . . . 15 11 30 . 63 . . . . . . . 168 . . Terrain Rammed . | . . . . . . . . . . . . . . . . . . Walls Destroyed . | . . . . . . . . . . . . . . . . . . Machines Disabled . | . . . . . . . . . . . . . . . . . . Actions | -11 -10 -10 -9 -8 -8 -7 -7 -7 -6 -6 -5 -4 -4 -4 -4 -4 -3 --------- Run | Yrd Mat Min Mat Mat Sto Fac Low Low Fac DSF Fac Fac Was Fac Upp Upp Res Total 7111 | 62 171 474 379 118 290 423 287 235 235 30 780 159 86 1046 1537 186 613 Wait 604 | . . 23 23 10 2 20 . . 66 . 33 . 2 15 396 . 14 Move 6027 | 45 154 413 307 93 269 381 269 230 154 29 683 140 83 953 1089 180 555 Hop 60 | . . . . 2 7 8 . . . . 12 2 1 17 1 . 10 Pick Up 67 | 3 8 8 5 2 3 5 3 . 1 1 9 3 . 11 2 . 3 Fast Attach 35 | 6 . . . 1 2 2 1 . 3 . 4 . . 7 2 1 6 Attach 37 | . 1 . 2 3 2 2 2 1 . . 2 3 . 11 2 . 6 Detach 14 | . . . . 2 . 1 1 . 2 . 1 1 . 2 3 . 1 Swap 31 | . 3 2 3 . . 1 2 . . . 7 4 . 1 6 . 2 Drop 56 | . 1 10 6 3 . 3 2 . 3 . 14 3 . 6 1 1 3 Fire 91 | 8 4 18 33 2 3 . 6 . . . 1 . . . 16 . . Melee 79 | . . . . . . . 1 4 6 . 14 3 . 15 19 4 13 Ram . | . . . . . . . . . . . . . . . . . . Kick . | . . . . . . . . . . . . . . . . . . Crush . | . . . . . . . . . . . . . . . . . . Escape Stasis 10 | . . . . . 2 . . . . . . . . 8 . . . Rewire . | . . . . . . . . . . . . . . . . . . Trap . | . . . . . . . . . . . . . . . . . . Miscellaneous . | . . . . . . . . . . . . . . . . . . Route ------- -11/Scrapyard -10/Materials (discovered 2 exits: *Min x2) -10/Mines (discovered 3 exits: *Mat x2 / [*Sub]) -9/Materials -8/Materials -8/Storage -7/Factory -7/Lower Caves -7/Lower Caves (discovered 2 exits: *Fac / Zio) -6/Factory -6/DSF -5/Factory (discovered 4 exits: *Fac x4) -4/Factory -4/Waste -4/Factory -4/Upper Caves -4/Upper Caves -3/Research (discovered 2 exits: Res / Arm) History --------- Turn | Location | Event 15 | -11/Scrapyard | Discovered new exit (range 15) 99 | -11/Scrapyard | Entered Materials 115 | -10/Materials | Discovered new exit (range 10) 301 | -10/Materials | Build established: Mutant 317 | -10/Materials | Discovered new exit (range 15) 371 | -10/Materials | Entered Mines 486 | -10/Mines | Met a Derelict shopkeep closing up shop 503 | -10/Mines | Assembled infested the area 548 | -10/Mines | Received a Mining Laser from a helpful Derelict 1014 | -10/Mines | Discovered new exit (range 13) 1017 | -10/Mines | Discovered new exit (range 11) 1020 | -10/Mines | Discovered new exit (range 14) 1028 | -10/Mines | Learned location of Zion (-7) 1111 | -10/Mines | Entered Materials 1111 | -9/Materials | Evolved 2 slots: Propulsion x2 1520 | -9/Materials | Destroyed 7 combat bots 1710 | -9/Materials | Discovered new exit (range 12) 1729 | -9/Materials | Entered another Materials area 1729 | -8/Materials | Evolved 2 slots: Utility x2 1772 | -8/Materials | Discovered new exit (range 8) 1791 | -8/Materials | Entered Storage 1877 | -8/Storage | Identified exit to Factory 1895 | -8/Storage | Entered Factory 1895 | -7/Factory | Evolved 2 slots: Propulsion x1, Utility x1 1918 | -7/Factory | Lost 3 parts (1p2n) 1949 | -7/Factory | Repaired Mni. Grenade Launcher 2038 | -7/Factory | Discovered new exit (range 8) 2042 | -7/Factory | Entered Lower Caves 2089 | -7/Lower Caves | Build established: Hacker-Sprinter 2142 | -7/Lower Caves | Discovered new exit (range 10) 2145 | -7/Lower Caves | Entered another Lower Caves area 2196 | -7/Lower Caves | Identified exit to Zion 2197 | -7/Lower Caves | Discovered new exit (range 14) 2217 | -7/Lower Caves | Entered Factory 2217 | -6/Factory | Evolved 2 slots: Utility x2 2348 | -6/Factory | Identified exit to DSF 2348 | -6/Factory | Entered DSF 2351 | -6/DSF | Discovered new exit (range 20) 2357 | -6/DSF | Identified exit to Factory 2357 | -6/DSF | Entered Factory 2357 | -5/Factory | Evolved 2 slots: Propulsion x1, Utility x1 2496 | -5/Factory | Identified exit to Factory 2674 | -5/Factory | Fabricated Adv. Coolant Injector? 2678 | -5/Factory | Entered another Factory area 2678 | -4/Factory | Evolved 2 slots: Power x1, Utility x1 2748 | -4/Factory | Manually triggered Chute Trap 2748 | -4/Factory | Sucked down chute 2748 | -4/Factory | Entered Waste 2750 | -4/Waste | Spotted C-40 Crusher 2751 | -4/Waste | Build established: Hacker-Ninja 2753 | -4/Waste | Spotted C-40 Crusher 2759 | -4/Waste | Spotted C-40 Crusher 2759 | -4/Waste | Spotted C-40 Crusher 2763 | -4/Waste | EMP discharged 2765 | -4/Waste | Spotted C-40 Crusher 2766 | -4/Waste | Discovered new exit (range 14) 2766 | -4/Waste | Spotted C-40 Crusher 2775 | -4/Waste | Crushed by Compactor (1 part destroyed, 2 dropped) 2776 | -4/Waste | Crushed by Compactor (1 part destroyed, 1 dropped) 2779 | -4/Waste | Identified exit to Factory 2779 | -4/Waste | Entered Factory 2807 | -4/Factory | Lost 3 parts (1n2u) 3036 | -4/Factory | Fabricated Mic. Antimatter Reactor? 3100 | -4/Factory | Central database locked down 3182 | -4/Factory | Lost 3 parts (1n2u) 3224 | -4/Factory | Discovered new exit (range 13) 3227 | -4/Factory | Identified exit to Upper Caves 3227 | -4/Factory | Entered Upper Caves 3439 | -4/Upper Caves | Attracted the attention of an 0b10 checkpoint 3470 | -4/Upper Caves | Destroyed 8 combat bots 3480 | -4/Upper Caves | Learned 8 Research zone layouts 3487 | -4/Upper Caves | Build established: Scientist-Ninja 4065 | -4/Upper Caves | Discovered new exit (range 20) 4070 | -4/Upper Caves | Attacked by a delusional Derelict stockpiling Unaware 4079 | -4/Upper Caves | Identified exit to Upper Caves 4080 | -4/Upper Caves | Entered another Upper Caves area 4084 | -4/Upper Caves | Learned 4 Research zone layouts 4143 | -4/Upper Caves | Discovered new exit (range 19) 4149 | -4/Upper Caves | Identified exit to Research 4154 | -4/Upper Caves | Entered Research 4154 | -3/Research | Evolved 2 slots: Propulsion x1, Utility x1 4155 | -3/Research | Identified exit to Research 4155 | -3/Research | Identified exit to Armory 4281 | -3/Research | Spotted B-86 Titan 4398 | -3/Research | Core integrity fell below 50% 4435 | -3/Research | Core integrity fell below 20% 4450 | -3/Research | Destroyed by S-43 Plague with Heavy Machine Gun Last Messages --------------- 04418_ Connecting with Terminal... 04418_ ALERT: Suspicious activity at Terminal R001. Dispatching Investigation squad. 04428_ Triggered EM Surge Trap. 04428_ The floor emits a surge of raw power. 04428_ System corrupted (+5). 04429_ Terminal disabled. 04429_ C-30 ARC bursts open, deploying its payload. 04429_ G-73 Enforcer unfolds itself. 04429_ G-67 Veteran unfolds itself. 04431_ P-80 Master resets A-15 Conveyor, system corruption cleaned. 04432_ Graphene Brace destroyed. 04433_ Adv. Hacking Suite destroyed. 04435_ P-80 Master resets K-01 Serf, system corruption cleaned. 04440_ Micro-nuke Launcher destroyed. 04448_ Antimatter Reactor+ destroyed. 04449_ Hacking Suite destroyed. Map ----- +----------------------------------------------------+ | ????????????????????# # / | | ????????????????????# # """"" # | | ????????????????????# ?# """"" # | | ????????????????????# ?# """"" #[ | | ????????????????????################# """"" # | | ?????????????????????????????# # | | ?????????????????????????????# # | | ?????????????????????????????# + | | ?????????????????????????????# " # | | ???????????????? ????????????# "" # | | ????????????????? ??????????# ^ "T # | | ?????????##########/########## """ ## | | ????????? A "" | | ????????? " | | ???????? "% | | ???????? """""""" | | ???????? """"""" #############+## | | ???????? """"""" " !! | | ??????? ![ " != | | ??????? ![ ### | | ?????? g p #?# | | ?????? ggs ### "T" | | ?????? gp ## """ | | ??????????+###############s####################### | | ??????????????????????# sss #?????# """"" | | ??????????????????????# s@ #?????# ""T"" | | ??????????????????????# """ #?????# | | ??????????????????????# """ #?????# | | ??????????????????????# """ #?????# | | ??????????????????????# #?????# == | | ??????????????????????# #?????# = | | ??????????????????????# #?????# """ | | ??????????????????????# #?????# """ | | ??????????????????????##########?????# """ | | ?????????????????????????????????????# | | ?????????????????????????????????????# = | | ????????????????????????????????#????##### ####### | | ??????????????????????????????#??????????######### | | ??????????????????????????????????????#????# | | ???????????????????????????????????????????# | | ???????????????????????????????????????????# """ | | ???????????????????????????????????????#???# """ | | ???????????????????????????????????????????# """ | | ???????????????????????????????????????#???# | | ???????????????????????????????????????????# | | ???????????????????????????????????????????# | | ??????????????????????????????????????#????####### | | | | | | | +----------------------------------------------------+ Best States ------------- Heat Dissipation 88 Energy Generation 34 Energy Capacity 560 Matter Stores 300 Matter Capacity 300 Sight Range 22 Robot Scan Range 16 Terrain Scan Range 24 Terrain Scan Density 210 Jamming Range 16 Corruption Containment 12 Armor Coverage 225 Evasion (%) 73 Melee Accuracy 8 Recoil Reduction 2 Offensive Hacking 24 Defensive Hacking 10 Item Schematics ----------------- Antimatter Reactor | -4/Factory | Scanalyzed Robot Schematics ------------------ None Fabricated ------------ Adv. Coolant Injector | x2 | -5/Factory | Preloaded Mic. Antimatter Reactor | x2 | -4/Factory | Preloaded Repaired ---------- Mni. Grenade Launcher | 20% | -7/Factory Studied --------- Field Propulsion Drive | -4/Factory | Hacked Field Propulsion Array | -4/Factory | Hacked Fission Core | -4/Factory | Hacked Antimatter Reactor | -4/Factory | Hacked Power Sword | -4/Factory | Hacked Alien Tech Used ----------------- None Achievements -------------- None Challenges ------------ None Game ------ Seed RelayBiometalKatana Manual? 0 Play Time 01:51:05 Cumulative 119.6 hours Start 2026.03.12 @ 22:32:07 End 2026.03.13 @ 00:29:09 Sessions 1 Manual Loads 0 Difficulty Rogue Special Mode None Game No. 64 Rogue 40 Adventurer 9 Explorer 15 Win Type - Total 17 Types 14/0/2/1/0/0/0/0/0/0 Lore% 52 Gallery% 53 Achievement% 51 Wizard Run 0 Options --------- Layout 1 ASCII 0 Keyboard 1 Movement Vi Keybinds 0 Fullscreen 1 Font 18/SmallcapsGlow Map View 51x43 Zoom Use 0% Tactical HUD 1 Map Filters NONE Filters NONE Steam 1 RUN: c4f5e0ce-ee5f-4aa9-bc18-41307a784fe4